bitfinex-derivatives/quotes_ETHF0:USTF0_20241105
["timestamp","ask_amount","ask_price","bid_price","bid_amount"]
[1730777760314,3.65074359,2412.6,2412.4,0.41478]
[1730777760618,3.23598359,2412.6,2412.4,0.41478]
[1730777760814,0.41477,2412.5,2412.3,0.8654]
[1730777761316,4.5412,2412.8,2412.1,0.86633]
[1730777761317,3.23598359,2412.4,2412.1,0.86633]
[1730777761615,3.23598359,2412.4,2412.0,3.2078]
[1730777761616,0.41484,2412.1,2412.0,3.2078]
[1730777761817,3.65082359,2412.1,2412.0,3.2078]
[1730777762024,3.23598359,2412.1,2412.0,3.62266]
[1730777762717,0.4371,2412.4,2412.0,7.3534]
[1730777762917,0.8519,2412.4,2412.3,0.41481]
[1730777763322,0.4371,2412.4,2412.3,0.41481]
[1730777768013,0.41481,2412.3,2412.2,0.41482]
[1730777768230,0.8519,2412.4,2412.2,0.41482]
[1730777768423,0.8519,2412.4,2412.1,4.523]
[1730777768621,0.8519,2412.4,2412.3,0.41481]
[1730777769426,0.4371,2412.4,2412.3,0.41481]
[1730777769725,0.85189,2412.4,2412.3,0.41481]
[1730777770317,0.41482,2412.3,2412.2,0.41482]
[1730777770823,0.4371,2412.4,2412.1,4.523]
[1730777771025,0.4371,2412.4,2412.3,0.41481]
[1730777772731,0.85189,2412.4,2412.3,0.41481]
[1730777772929,0.85189,2412.4,2412.2,0.41481]
[1730777773131,0.85189,2412.4,2412.3,0.41481]
[1730777773826,0.4371,2412.4,2412.3,0.41481]
[1730777775735,3.2078,2412.6,2412.5,0.41477]
[1730777776032,3.62256,2412.6,2412.5,0.41477]
[1730777776631,3.23598359,2412.7,2412.6,0.41476]
[1730777776836,0.4526,2412.8,2412.7,0.41474]
[1730777777136,0.86732,2412.8,2412.7,0.41474]
[1730777778037,0.4526,2412.8,2412.7,0.41474]
[1730777779039,6.44378359,2413.0,2412.4,1.03697]
[1730777779240,6.85848359,2413.0,2412.8,0.41471]
[1730777779529,6.44378359,2413.0,2412.8,0.41471]
[1730777779734,0.4147,2412.9,2412.8,0.41471]
[1730777780332,0.41473,2412.8,2412.7,0.41473]
[1730777780734,6.44378359,2413.0,2412.7,0.41473]
[1730777780936,0.41472,2412.9,2412.7,0.41473]
[1730777781129,6.44378359,2413.0,2412.7,0.41473]
[1730777781334,0.41472,2412.8,2412.7,0.41473]
[1730777782240,0.41472,2412.9,2412.7,0.41473]
[1730777782830,3.23598359,2413.0,2412.5,1.3349]
[1730777783030,4.50097,2413.1,2412.6,1.0369]
[1730777783226,4.0863,2413.1,2412.5,1.3349]
[1730777783428,4.50098,2413.1,2412.9,0.41469]
[1730777783839,4.0863,2413.1,2413.0,0.41469]
[1730777784036,3.635,2413.1,2413.0,0.41469]
[1730777784444,4.04967,2413.1,2413.0,0.41469]
[1730777784743,3.635,2413.1,2413.0,0.41469]
[1730777785236,3.635,2413.1,2412.6,4.2447]
[1730777785541,0.41469,2413.0,2412.9,0.41469]
[1730777785741,3.635,2413.1,2413.0,0.41469]
[1730777787047,0.84187,2413.1,2413.0,0.41469]
[1730777787744,0.4272,2413.1,2413.0,0.41469]
[1730777789450,0.84187,2413.1,2413.0,0.41469]
[1730777789954,0.4272,2413.1,2413.0,0.41469]
[1730777793449,1.92055558,2413.1,2413.0,0.41469]
[1730777797244,1.92055558,2413.1,2412.7,4.24463]
[1730777797245,1.92055558,2413.1,2412.7,3.2078]
[1730777797437,0.41469,2413.0,2412.9,0.41469]
[1730777797638,0.41469,2413.0,2412.7,3.2078]
[1730777797639,0.41471,2412.9,2412.8,0.41472]
[1730777797844,0.85821,2412.9,2412.8,0.41472]
[1730777798353,0.41472,2412.8,2412.7,0.41472]
[1730777798539,1.49335558,2412.7,2412.6,0.41476]
[1730777798740,1.93645558,2412.7,2412.6,1.00842716]
[1730777799643,0.41479,2412.4,2412.3,0.4148]
[1730777799853,0.41479,2412.4,2412.3,1.00875322]
[1730777800037,1.90813558,2412.5,2412.4,0.41479]
[1730777800239,1.90813558,2412.5,2412.1,1.3464]
[1730777800240,1.49335558,2412.5,2412.1,1.3464]
[1730777800440,1.49335558,2412.3,2412.2,1.00887755]
[1730777800843,1.92475558,2412.3,2412.2,1.00887755]
[1730777801152,2.33956558,2412.3,2412.2,1.00887755]
[1730777801453,1.92475558,2412.3,2412.2,1.00887755]
[1730777801838,5.56638725,2413.0,2412.2,1.00887755]
[1730777801839,1.49335558,2412.8,2412.7,0.41474]
[1730777802244,2.35725558,2412.9,2412.8,0.41472]
[1730777802444,1.92475558,2412.9,2412.8,0.41472]
[1730777803454,0.4314,2412.9,2412.8,0.41472]
[1730777804642,0.4325,2413.1,2412.8,4.1448]
[1730777804850,0.4325,2413.1,2413.0,0.41469]
[1730777805955,7.33099373,2413.3,2413.2,0.41465]
[1730777807053,4.12319373,2413.3,2413.2,0.41465]
[1730777808463,0.446,2413.3,2413.2,0.41465]
[1730777808645,3.23599373,2413.5,2413.4,0.41462]
[1730777811253,3.65059373,2413.5,2413.4,0.41462]
[1730777811461,3.23599373,2413.5,2413.4,0.41462]
[1730777812857,3.65060373,2413.5,2413.0,3.6504]
[1730777813068,3.65060373,2413.5,2413.4,0.41462]
[1730777813268,3.23599373,2413.5,2413.4,0.41462]
[1730777813571,1.33648,2413.7,2413.6,0.41458]
[1730777814058,1.33648,2413.7,2413.5,0.41459]
[1730777814360,0.9219,2413.7,2413.5,0.41459]
[1730777814566,0.41458,2413.6,2413.5,0.41459]
[1730777815163,1.33647,2413.7,2413.6,0.41458]
[1730777816967,0.9219,2413.7,2413.5,0.4146]
[1730777817167,1.33648,2413.7,2413.4,0.41462]
[1730777817368,1.33648,2413.7,2413.3,0.4257]
[1730777817567,1.33648,2413.7,2413.5,0.41459]
[1730777818466,0.4534,2413.6,2413.5,0.41459]
[1730777819265,0.86798,2413.6,2413.5,0.41459]
[1730777819468,0.4534,2413.6,2413.5,0.41459]
[1730777819669,0.4146,2413.5,2413.4,0.4146]
[1730777819870,0.86799,2413.6,2413.3,0.4257]
[1730777820070,0.86799,2413.6,2413.5,0.4146]
[1730777820974,0.4534,2413.6,2413.5,0.4146]
[1730777821175,0.464,2413.7,2413.3,0.4257]
[1730777821368,0.881,2414.0,2413.9,0.41453]
[1730777821980,0.4518,2414.0,2413.9,0.41453]
[1730777822268,2.61267016,2414.5,2414.0,1.03629]
[1730777822465,0.4468,2414.4,2414.3,0.41446]
[1730777822667,3.2078,2414.7,2414.6,0.41441]
[1730777823759,0.41441,2414.6,2414.4,0.41444]
[1730777823968,0.41444,2414.5,2414.3,0.41445]
[1730777824180,0.4292,2414.6,2414.1,3.2078]
[1730777824478,0.4659,2414.4,2414.3,0.41446]
[1730777825973,0.4659,2414.4,2414.1,3.2078]
[1730777826171,0.4659,2414.4,2414.2,0.41448]
[1730777826172,0.4609,2414.3,2414.2,0.41448]
[1730777827276,0.87536,2414.3,2414.2,0.41448]
[1730777830472,0.4609,2414.3,2414.2,0.41448]
[1730777831566,0.4659,2414.4,2414.2,4.1424]
[1730777831767,6.44379373,2414.7,2414.6,0.41441]
[1730777831768,3.2078,2414.7,2414.6,0.41441]
[1730777831965,0.4548,2414.9,2414.5,3.2078]
[1730777832168,0.4548,2414.9,2414.8,0.41438]
[1730777832372,0.4548,2414.9,2414.6,0.9129]
[1730777832568,0.41439,2414.7,2414.3,0.4508]
[1730777832769,0.41439,2414.8,2414.3,1.3637]
[1730777833185,0.41439,2414.8,2414.6,0.4144]
[1730777833377,0.41439,2414.8,2414.7,0.41439]
[1730777835478,0.41439,2414.8,2414.3,1.3637]
[1730777835479,0.4548,2414.9,2414.3,1.3637]
[1730777835684,0.41438,2414.8,2414.7,0.41439]
[1730777836074,0.4548,2414.9,2414.3,1.3637]
[1730777836382,0.86917,2414.9,2414.7,0.41438]
[1730777839087,0.4548,2414.9,2414.4,3.2078]
[1730777839571,0.41438,2414.8,2414.6,0.41441]
[1730777840171,0.86918,2414.9,2414.7,0.41439]
[1730777841390,0.86918,2414.9,2414.8,0.41438]
[1730777841675,0.86918,2414.9,2414.7,0.41438]
[1730777843484,0.4548,2414.9,2414.8,0.41438]
[1730777845477,0.86916,2414.9,2414.8,0.41438]
[1730777845985,0.4548,2414.9,2414.8,0.41438]
[1730777847578,1.33243,2415.1,2415.0,0.41434]
[1730777847579,0.4513,2415.1,2415.0,0.41434]
[1730777847784,0.4513,2415.1,2414.7,4.24375]
[1730777847785,3.6705,2415.3,2415.2,0.41431]
[1730777848286,3.6705,2415.3,2414.8,1.3469]
[1730777848578,3.6705,2415.3,2414.3,3.23599373]
[1730777848579,3.23599373,2415.0,2414.3,3.2078]
[1730777848780,3.23599373,2414.8,2414.4,0.4541]
[1730777849092,3.23599373,2414.8,2414.4,0.86855]
[1730777849093,0.41442,2414.6,2414.4,0.86855]
[1730777849289,40.8,2414.6,2414.4,0.86855]
[1730777849490,40.8,2414.6,2414.4,0.4541]
[1730777849785,40.8,2414.6,2414.5,0.41443]
[1730777850080,40.8,2414.6,2414.4,0.4541]
[1730777850081,40.8,2414.6,2414.4,0.86854]
[1730777850286,41.21442,2414.6,2414.4,0.4541]
[1730777850485,0.41442,2414.6,2414.4,0.4541]
[1730777850684,3.23599373,2414.8,2414.4,0.86854]
[1730777850987,0.41442,2414.6,2414.4,0.4541]
[1730777851582,0.41443,2414.5,2414.3,3.2078]
[1730777851778,0.84243,2414.5,2414.3,3.2078]
[1730777851988,0.41446,2414.3,2414.2,0.4572]
[1730777852693,1.33375,2414.4,2414.2,0.4572]
[1730777852883,0.41446,2414.3,2414.2,0.4572]
[1730777853782,1.33375,2414.4,2414.2,0.4572]
[1730777853980,0.9193,2414.4,2414.2,0.4572]
[1730777854185,0.41446,2414.3,2414.2,0.4572]
[1730777857391,0.9193,2414.4,2414.0,0.442]
[1730777857392,0.4145,2414.1,2414.0,0.442]
[1730777858092,0.4145,2414.1,2413.9,3.2078]
[1730777858681,0.4145,2414.1,2413.9,3.62233]
[1730777858888,0.41451,2414.0,2413.9,3.2078]
[1730777860493,0.41451,2414.1,2413.9,3.2078]
[1730777860886,0.41451,2414.1,2413.9,3.6761]
[1730777861286,0.41451,2414.0,2413.9,3.6761]
[1730777861895,0.41451,2414.0,2413.9,0.4683]
[1730777865990,3.23599373,2414.3,2413.8,3.6405]
[1730777866190,0.41453,2413.9,2413.8,3.6405]
[1730777867300,0.41453,2413.9,2413.8,4.23289544]
[1730777868099,0.41453,2413.9,2413.8,1.02509544]
[1730777868296,3.673,2414.1,2413.7,0.8657]
[1730777868495,0.4583,2414.0,2413.7,0.8657]
[1730777868796,0.8947,2414.0,2413.7,0.8657]
[1730777869001,0.41455,2413.8,2413.7,0.8657]
[1730777869199,0.41455,2413.8,2413.7,1.45819423]
[1730777869398,0.41455,2413.8,2413.7,0.8657]
[1730777869906,0.41455,2413.8,2413.7,1.45806589]
[1730777870095,0.41455,2413.8,2413.7,1.45806304]
[1730777870291,0.41455,2413.8,2413.7,0.8657]
[1730777870500,0.41455,2413.8,2413.7,1.45798436]
[1730777870804,0.41455,2413.8,2413.7,0.8657]
[1730777871904,0.41455,2413.8,2413.7,0.4312]
[1730777874502,0.41455,2413.9,2413.7,0.4312]
[1730777874700,0.41455,2413.8,2413.7,0.4312]
[1730777875905,0.4146,2413.5,2413.1,3.2078]
[1730777876103,0.41464,2413.3,2413.2,1.02684614]
[1730777876403,1.90757754,2413.2,2413.1,0.4692]
[1730777876903,0.4147,2412.9,2412.8,3.2078]
[1730777877098,1.49292754,2413.0,2412.8,3.2078]
[1730777877304,0.41474,2412.7,2412.6,0.904]
[1730777877503,1.90766754,2412.7,2412.6,0.904]
[1730777878307,0.41473,2412.8,2412.6,5.0488]
[1730777878610,0.41474,2412.8,2412.6,0.904]
[1730777880109,0.8798,2412.9,2412.6,0.904]
[1730777880412,0.41474,2412.7,2412.6,0.904]
[1730777880600,0.41476,2412.6,2412.5,3.2078]
[1730777880797,3.671944,2412.8,2412.5,3.2078]
[1730777881006,0.41476,2412.6,2412.5,3.2078]
[1730777881314,3.650704,2412.6,2412.5,3.2078]
[1730777883305,3.650704,2412.6,2412.2,0.8642]
[1730777883607,3.650704,2412.6,2412.4,3.2078]
[1730777884399,3.235944,2412.8,2412.4,7.3526]
[1730777884706,0.41471,2412.9,2412.5,0.4328]
[1730777884898,6.893544,2413.0,2412.5,0.4328]
[1730777885104,6.893544,2413.0,2412.7,0.41473]
[1730777885105,6.443744,2413.0,2412.7,0.41473]
[1730777885312,6.443744,2413.0,2412.8,0.4499]
[1730777885613,6.858434,2413.0,2412.8,0.4499]
[1730777887205,3.650634,2413.0,2412.8,0.4499]
[1730777887412,0.4147,2412.9,2412.6,0.4565]
[1730777887710,0.4147,2412.9,2412.7,0.4499]
[1730777888502,3.650634,2413.0,2412.7,0.4499]
[1730777888913,3.235944,2413.0,2412.7,0.4499]
[1730777889102,0.41471,2412.9,2412.7,0.4499]
[1730777890209,3.650644,2413.0,2412.7,0.4499]
[1730777891105,3.235944,2413.0,2412.7,0.4499]
[1730777891307,0.41471,2412.9,2412.7,0.4499]
[1730777894106,3.235944,2413.0,2412.7,0.4499]
[1730777894307,3.650644,2413.0,2412.7,0.4499]
[1730777895007,0.41471,2412.9,2412.7,0.4499]
[1730777896018,0.4498,2413.2,2412.8,4.1448]
[1730777896315,0.4498,2413.2,2412.8,0.41472]
[1730777896316,0.86446,2413.2,2412.8,0.41472]
[1730777896714,0.4498,2413.2,2412.7,0.86463]
[1730777896922,0.86446,2413.2,2412.8,0.41472]
[1730777897112,0.86446,2413.2,2412.7,0.4499]
[1730777897311,0.41468,2413.1,2412.7,0.86463]
[1730777897510,0.41468,2413.1,2412.7,0.4499]
[1730777897710,0.41468,2413.1,2412.7,0.86463]
[1730777899208,3.235944,2413.1,2412.7,0.4499]
[1730777899410,0.8693,2413.0,2412.7,0.4499]
[1730777899615,0.8425,2413.0,2412.7,0.4499]
[1730777901816,0.4278,2413.0,2412.7,0.4499]
[1730777902120,0.4147,2412.9,2412.7,0.4499]
[1730777902319,0.4147,2412.9,2412.7,4.5947]
[1730777903022,0.84249,2413.0,2412.7,4.5947]
[1730777903329,0.41471,2412.9,2412.7,0.4499]
[1730777903716,0.41471,2412.9,2412.7,4.5947]
[1730777904024,0.41472,2412.8,2412.7,4.5947]
[1730777904226,0.41472,2412.8,2412.7,0.4499]
[1730777904530,0.41472,2412.8,2412.7,4.5947]
[1730777906828,0.4278,2413.0,2412.7,4.5947]
[1730777907031,0.41472,2412.8,2412.7,0.4499]
[1730777907230,0.41472,2412.9,2412.7,0.4499]
[1730777907428,0.4147,2412.9,2412.7,0.4499]
[1730777907635,0.41472,2412.8,2412.7,4.5947]
[1730777907817,0.41472,2412.8,2412.7,0.4499]
[1730777908023,0.41472,2412.8,2412.7,4.5947]
[1730777908219,0.41472,2412.8,2412.7,0.4499]
[1730777908518,0.41472,2412.8,2412.7,4.5947]
[1730777909721,0.4278,2413.0,2412.7,4.5947]
[1730777909922,0.41472,2412.8,2412.7,0.4499]
[1730777910326,0.41472,2412.8,2412.7,4.5947]
[1730777911027,0.41472,2412.8,2412.7,0.4499]
[1730777911232,0.4278,2413.0,2412.6,0.4565]
[1730777911233,0.41474,2412.7,2412.6,0.4565]
[1730777911628,0.41474,2412.7,2412.6,4.6013]
[1730777912034,0.4625,2412.8,2412.5,3.2078]
[1730777912035,0.41476,2412.6,2412.5,3.2078]
[1730777912220,0.41482,2412.2,2412.1,3.6631]
[1730777912532,0.41482,2412.2,2412.1,3.79263471]
[1730777912725,0.41482,2412.2,2412.1,3.2078]
[1730777913130,0.41482,2412.2,2412.1,3.79285901]
[1730777913334,0.41482,2412.2,2412.1,3.2078]
[1730777917119,0.41485,2412.1,2412.0,3.2078]
[1730777917530,0.41488,2411.9,2411.8,0.4553]
[1730777917738,0.41488,2411.9,2411.8,1.04071721]
[1730777918032,0.41488,2411.9,2411.8,0.58541721]
[1730777918229,0.84548,2411.9,2411.8,0.58549185]
[1730777920031,0.84548,2411.9,2411.8,0.58560394]
[1730777920535,0.41488,2411.9,2411.8,0.58560394]
[1730777920728,0.097,2412.5,2411.8,7.93980394]
[1730777920930,0.41481,2412.3,2411.9,1.97695306]
[1730777921135,0.41481,2412.3,2412.0,1.52265306]
[1730777921434,0.41481,2412.3,2412.1,1.04870394]
[1730777921624,0.41481,2412.3,2412.2,0.58560394]
[1730777923425,0.4345,2412.4,2412.1,0.4631]
[1730777923627,0.41482,2412.2,2412.1,0.4631]
[1730777924033,3.670444,2412.4,2412.1,1.04894203]
[1730777924232,0.41482,2412.3,2412.1,0.4631]
[1730777924433,3.670444,2412.4,2412.1,0.4631]
[1730777924635,0.41482,2412.2,2412.1,0.4631]
[1730777924938,0.41482,2412.2,2412.1,1.04890024]
[1730777925335,0.41482,2412.3,2412.1,1.04890024]
[1730777925537,0.41482,2412.3,2412.1,0.4631]
[1730777926239,0.4345,2412.4,2412.2,0.5857192]
[1730777926539,0.8493,2412.4,2412.1,0.4631]
[1730777926741,0.41481,2412.3,2412.2,0.58571304]
[1730777926935,0.4345,2412.4,2412.2,0.58571304]
[1730777927138,0.4345,2412.4,2412.2,0.4297]
[1730777927342,0.84929,2412.4,2412.3,0.4491]
[1730777937648,0.41478,2412.5,2412.3,4.5947]
[1730777937848,1.03683,2412.8,2412.3,4.5947]
[1730777937849,0.4289,2412.7,2412.4,4.73118048]
[1730777938056,0.4289,2412.7,2412.3,3.6569]
[1730777938354,0.41478,2412.5,2412.4,0.58559127]
[1730777938743,0.41478,2412.5,2412.4,4.73039127]
[1730777939346,0.41478,2412.5,2412.4,0.58559127]
[1730777939549,3.235944,2412.6,2412.1,0.4631]
[1730777939755,0.41481,2412.3,2412.2,0.58556985]
[1730777939954,0.41484,2412.1,2412.0,3.2078]
[1730777940251,0.41484,2412.1,2412.0,3.79343204]
[1730777941358,0.41484,2412.1,2412.0,3.79058063]
[1730777941561,0.41484,2412.1,2412.0,3.79064782]
[1730777942056,3.6699,2412.5,2412.0,7.93624782]
[1730777942256,0.4148,2412.4,2412.1,0.58284782]
[1730777942458,0.88398,2412.5,2412.2,0.4237]
[1730777942656,0.41479,2412.4,2412.3,0.4282]
[1730777942856,0.41479,2412.4,2412.3,0.8932]
[1730777943462,0.41479,2412.4,2412.3,1.47603755]
[1730777943858,0.41479,2412.4,2412.3,0.8932]
[1730777944461,0.41479,2412.4,2412.3,0.5829009]
[1730777944765,0.41479,2412.4,2411.6,3.17967724]
[1730777944766,7.7843,2412.4,2411.7,3.2078]
[1730777944971,0.41489,2411.8,2411.7,3.2078]
[1730777945561,0.41489,2411.8,2411.7,4.72396962]
[1730777945763,0.41489,2411.8,2411.7,3.79094216]
[1730777946970,0.41489,2411.8,2411.7,3.2078]
[1730777950069,0.9128,2411.9,2411.4,0.8985]
[1730777950263,0.41493,2411.6,2411.5,0.58291605]
[1730777950462,0.41493,2411.6,2411.5,3.79071605]
[1730777950863,0.4351,2411.7,2411.5,3.79071605]
[1730777951065,0.85002,2411.7,2411.6,0.58291605]
[1730777953172,0.85002,2411.7,2411.6,3.79071605]
[1730777955073,0.85002,2411.7,2411.6,0.58291605]
[1730777955265,0.85002,2411.7,2411.6,3.79071605]
[1730777955861,0.85002,2411.7,2411.6,3.2078]
[1730777956063,0.85002,2411.7,2411.6,0.58339383]
[1730777956271,0.85002,2411.7,2411.6,3.2078]
[1730777956468,0.85002,2411.7,2411.6,3.79116562]
[1730777956469,0.4351,2411.7,2411.6,3.79116562]
[1730777956977,0.85001,2411.7,2411.6,3.79116562]
[1730777957174,0.4351,2411.7,2411.6,3.79116562]
[1730777958374,0.4351,2411.7,2411.6,0.58336562]
[1730777958867,0.85001,2411.7,2411.6,0.58336562]
[1730777959074,0.85001,2411.7,2411.4,0.4331]
[1730777959075,3.671044,2411.7,2411.4,0.4331]
[1730777959372,3.671044,2411.7,2411.5,0.58360887]
[1730777959373,0.41493,2411.6,2411.5,0.58360887]
[1730777959570,0.41493,2411.6,2411.4,0.4331]
[1730777959770,0.41493,2411.6,2411.5,0.5836258]
[1730777960273,0.41493,2411.6,2411.5,0.58357168]
[1730777960472,0.41493,2411.6,2411.4,0.4331]
[1730777963777,1.13417,2412.0,2411.4,0.4331]
[1730777963778,3.332944,2412.0,2411.4,3.6409]
[1730777963980,3.332944,2412.0,2411.5,1.03760323]
[1730777963981,0.94997,2412.0,2411.5,1.03760323]
[1730777964178,0.4381,2412.0,2411.8,0.41488]
[1730777964483,0.4381,2412.0,2411.9,1.29778]
[1730777965683,0.41483,2412.2,2412.0,0.41485]
[1730777965880,0.41482,2412.3,2411.9,0.8829]
[1730777966176,0.41482,2412.3,2412.1,0.41484]
[1730777966373,3.669544,2412.4,2412.0,0.4664]
[1730777966576,0.41481,2412.3,2412.0,0.88124]
[1730777966977,0.41481,2412.3,2412.1,0.41484]
[1730777968185,4.084344,2412.4,2412.2,0.41482]
[1730777969083,3.669544,2412.4,2412.2,0.41482]
[1730777969379,0.41481,2412.3,2412.2,0.41482]
[1730777969581,0.41481,2412.3,2412.1,0.41484]
[1730777972282,0.41482,2412.2,2412.0,0.88125]
[1730777972987,0.41482,2412.3,2412.1,0.41484]
[1730777973183,3.669544,2412.4,2412.0,0.4664]
[1730777973384,0.41482,2412.3,2412.0,0.88124]
[1730777973583,0.41482,2412.3,2412.1,0.58328602]
[1730777973879,0.41482,2412.3,2412.0,0.88124]
[1730777974186,0.41482,2412.3,2412.1,0.58327344]
[1730777974487,0.41482,2412.3,2412.1,0.41484]
[1730777977580,0.4336,2412.4,2412.0,0.4664]
[1730777977883,0.097,2412.6,2412.5,0.41477]
[1730777978084,0.41471,2412.9,2412.7,0.41472]
[1730777978484,0.41471,2412.9,2412.6,0.41476]
[1730777978683,0.41471,2412.9,2412.7,0.41473]
[1730777978885,0.41471,2412.9,2412.5,0.4307]
[1730777979185,0.41471,2412.9,2412.7,0.41473]
[1730777979489,0.41471,2412.9,2412.5,0.4307]
[1730777979684,0.41471,2412.9,2412.8,0.41472]
[1730777980190,0.41472,2412.9,2412.7,0.41472]
[1730777980391,0.41472,2412.9,2412.8,0.41472]
[1730777981593,0.41472,2412.9,2412.5,0.4307]
[1730777981594,0.41472,2412.9,2412.7,0.41473]
[1730777982699,0.41472,2412.8,2412.7,0.41473]
[1730777983387,0.41472,2412.8,2412.4,4.0742]
[1730777983388,0.41475,2412.7,2412.6,0.41475]
[1730777983590,0.41476,2412.6,2412.5,0.41477]
[1730777983789,0.88106,2412.6,2412.5,0.41477]
[1730777983994,0.4663,2412.6,2412.5,0.41477]
[1730777984388,0.88106,2412.6,2412.5,0.41477]
[1730777985491,0.4663,2412.6,2412.5,0.41477]
[1730777991190,0.41478,2412.5,2412.4,0.41478]
[1730777991392,0.4578,2412.5,2412.4,0.41478]
[1730777995992,0.87257,2412.5,2412.4,0.41478]
[1730777996599,0.41481,2412.3,2412.2,3.2078]
[1730777996802,0.41484,2412.2,2412.0,0.41485]
[1730777996998,1.29174,2412.2,2412.0,0.41485]
[1730777997305,0.41484,2412.1,2412.0,0.41485]
[1730777997506,0.8769,2412.2,2412.0,0.41486]
[1730777997703,0.4382,2412.1,2412.0,0.41486]
[1730777999099,3.62259,2412.5,2412.0,2.0737641]
[1730777999302,0.41479,2412.5,2412.4,0.41479]
[1730777999903,1.2946,2412.6,2412.5,0.41477]
[1730778000204,1.2946,2412.6,2412.4,0.41477]
[1730778000205,1.70936,2412.6,2412.4,0.41477]
[1730778000506,0.41477,2412.5,2412.4,0.41477]
[1730778001101,1.2946,2412.6,2412.4,0.41477]
[1730778001304,0.41477,2412.5,2412.4,0.41477]
[1730778001499,1.2946,2412.6,2412.3,1.3605]
[1730778001500,1.70936,2412.6,2412.3,1.3605]
[1730778001806,0.41479,2412.4,2412.3,1.30579]
[1730778002002,1.2946,2412.6,2412.3,1.30579]
[1730778002202,1.70936,2412.6,2412.3,0.891]
[1730778002398,0.4323,2412.6,2412.5,0.41477]
[1730778002607,0.41473,2412.8,2412.7,0.41474]
[1730778002608,1.32363,2412.8,2412.7,0.41474]
[1730778002803,1.75583,2412.8,2412.7,0.41474]
[1730778003301,1.75583,2412.8,2412.3,0.891]
[1730778003302,1.3411,2412.8,2412.3,0.891]
[1730778003503,0.41474,2412.7,2412.6,0.41475]
[1730778003901,0.41476,2412.6,2412.3,0.891]
[1730778004106,1.3411,2412.8,2412.3,0.891]
[1730778004299,1.3411,2412.8,2412.6,0.41475]
[1730778004300,0.41475,2412.7,2412.6,0.41475]
[1730778004507,1.3411,2412.8,2412.7,0.41474]
[1730778004508,1.75583,2412.8,2412.7,0.41474]
[1730778004705,1.3411,2412.8,2412.7,0.41474]
[1730778005008,0.4322,2412.8,2412.7,0.41474]
[1730778006199,0.4322,2412.8,2412.7,0.85084]
[1730778008202,0.4322,2412.8,2412.7,0.58059413]
[1730778008507,0.41475,2412.7,2412.5,0.41476]
[1730778010110,0.41475,2412.7,2412.6,0.58105047]
[1730778012212,4.55955,2412.7,2412.6,0.58105047]
[1730778012602,0.4148,2412.4,2412.3,0.4148]
[1730778012802,0.4148,2412.4,2412.3,1.93476091]
[1730778013102,0.41478,2412.5,2412.3,0.4148]
[1730778013303,0.4298,2412.4,2412.3,0.4148]
[1730778013698,0.4298,2412.4,2412.3,1.93488376]
[1730778015906,0.86,2412.4,2412.3,0.4148]
[1730778016212,0.86,2412.4,2412.3,1.93488342]
[1730778016705,3.6625,2412.8,2412.7,0.41474]
[1730778017710,4.07722,2412.8,2412.7,0.41474]
[1730778018211,4.07722,2412.8,2412.7,0.99941435]
[1730778018412,0.86942,2412.8,2412.7,0.99941435]
[1730778018715,3.6625,2412.8,2412.7,0.99941435]
[1730778019309,4.07722,2412.8,2412.7,0.99941435]
[1730778020314,3.6625,2412.8,2412.7,0.99941435]
[1730778020506,4.07722,2412.8,2412.7,0.99941435]
[1730778020717,3.6625,2412.8,2412.7,0.99941435]
[1730778021912,4.07722,2412.8,2412.7,0.99941435]
[1730778022111,3.2078,2412.8,2412.7,0.99941435]
[1730778022310,0.4555,2412.9,2412.8,0.41472]
[1730778022509,0.4555,2412.9,2412.8,1.93509219]
[1730778022700,0.83758,2413.1,2412.8,1.52037219]
[1730778022901,0.8863,2413.1,2413.0,0.41469]
[1730778023107,0.8863,2413.1,2413.0,0.99936435]
[1730778024015,1.30097,2413.1,2413.0,0.99936435]
[1730778025002,1.30097,2413.1,2413.0,0.58467435]
[1730778025213,0.4147,2413.0,2412.9,0.4147]
[1730778025516,0.4147,2413.0,2412.9,0.99935567]
[1730778025709,0.4147,2413.0,2412.9,0.58465567]
[1730778026212,4.5587,2413.0,2412.9,0.58465567]
[1730778026418,0.41476,2412.6,2412.5,0.41476]
[1730778026711,8.38855,2413.0,2412.3,0.4532]
[1730778026712,3.23651089,2412.8,2412.3,0.4532]
[1730778026917,1.29085,2412.7,2412.6,0.41475]
[1730778027121,0.41477,2412.6,2412.5,0.41477]
[1730778027612,4.55957,2412.6,2412.5,0.41477]
[1730778028007,4.55957,2412.6,2412.3,0.4532]
[1730778028008,1.29084,2412.7,2412.6,0.41476]
[1730778028401,0.8761,2412.7,2412.6,0.41476]
[1730778028606,0.097,2413.1,2413.0,0.41469]
[1730778028801,0.41466,2413.2,2413.1,0.41467]
[1730778028802,1.28096,2413.2,2413.1,0.41467]
[1730778029005,1.28096,2413.2,2413.0,0.41467]
[1730778029212,0.8663,2413.2,2412.7,1.3193]
[1730778029415,0.8663,2413.2,2413.1,0.41467]
[1730778029914,0.4269,2413.2,2413.1,0.41467]
[1730778030108,0.4394,2413.4,2413.1,0.41467]
[1730778030308,0.4394,2413.4,2413.3,0.41463]
[1730778031607,0.85402,2413.4,2413.3,0.41463]
[1730778032211,0.4394,2413.4,2413.3,0.41463]
[1730778032614,0.4394,2413.4,2412.9,1.03677]
[1730778032615,0.8945,2413.5,2413.4,0.41462]
[1730778034209,0.4269,2413.5,2413.4,0.41462]
[1730778037215,3.65109089,2413.7,2413.5,0.41459]
[1730778037416,0.41458,2413.6,2413.5,0.41459]
[1730778037616,4.08829089,2413.7,2413.5,0.41459]